bitfinex/quotes_SOLUSD_20251212
["timestamp","ask_amount","ask_price","bid_price","bid_amount"]
[1765549540181,8.6,138.99,138.96,7.91609192]
[1765549540378,8.6,138.99,138.95,11.91008701]
[1765549540379,0.72,138.98,138.95,11.91008701]
[1765549540575,0.72,138.98,138.94,25.67758791]
[1765549541487,0.72,138.98,138.95,7.19672992]
[1765549542177,4.71331428,138.96,138.9,0.72]
[1765549542378,7.88,138.95,138.91,0.72]
[1765549542690,8.6,138.95,138.91,0.72]
[1765549543187,7.88,138.95,138.91,5.43331428]
[1765549543357,7.88,138.95,138.92,11.91169044]
[1765549543558,0.72,138.97,138.92,11.91169044]
[1765549543559,7.19631548,138.96,138.92,12.63169044]
[1765549543785,7.88,138.94,138.93,5.43331428]
[1765549544364,7.9154756,138.98,138.93,5.43331428]
[1765549544561,7.88,138.97,138.94,5.43331428]
[1765549544781,7.88,138.97,138.94,0.72]
[1765549545694,15.07583921,138.97,138.94,0.72]
[1765549546300,15.07583921,138.97,138.91,5.43331428]
[1765549546301,0.72,138.96,138.91,5.43331428]
[1765549546474,0.72,138.96,138.91,12.63191936]
[1765549547181,0.72,138.96,138.91,7.91860508]
[1765549547366,0.72,138.96,138.91,12.63191936]
[1765549547796,7.19683339,138.95,138.91,12.63191936]
[1765549548195,7.91683339,138.95,138.91,12.63191936]
[1765549548898,30.58280841,138.97,138.92,5.43331428]
[1765549548899,7.19631548,138.96,138.92,5.43331428]
[1765549549099,7.91631548,138.96,138.93,0.72]
[1765549549784,7.91631548,138.96,138.92,4.71331428]
[1765549549986,7.91631548,138.96,138.92,3.73792097]
[1765549550907,0.72,138.95,138.92,0.72]
[1765549551598,7.88,138.94,138.92,0.72]
[1765549552491,7.88,138.94,138.93,3.01792097]
[1765549552692,7.88,138.96,138.93,3.01792097]
[1765549552897,7.88,138.96,138.94,0.71]
[1765549554795,15.73646422,138.96,138.92,23.97331617]
[1765549555312,15.73646422,138.96,138.93,0.71]
[1765549557008,15.07646422,138.96,138.93,0.71]
[1765549557208,7.19646422,138.96,138.93,0.71]
[1765549557530,7.8560055,138.97,138.93,10.92561732]
[1765549557690,7.88,138.95,138.93,10.92561732]
[1765549557892,7.88,138.95,138.94,0.71]
[1765549558580,7.88,138.95,138.92,13.0470912]
[1765549558786,15.77687165,138.95,138.92,13.7570912]
[1765549559805,0.7,138.94,138.9,10.92725741]
[1765549560308,3.01792097,138.92,138.87,0.89]
[1765549560480,7.88,138.91,138.87,0.2]
[1765549560682,7.19942404,138.9,138.87,0.2]
[1765549560983,7.91942404,138.9,138.87,0.2]
[1765549563016,7.19942404,138.9,138.87,0.2]
[1765549563188,7.91942404,138.9,138.87,0.2]
[1765549564010,7.19942404,138.9,138.87,0.2]
[1765549564213,7.91942404,138.9,138.87,0.2]
[1765549570690,7.88,138.89,138.88,3.70792097]
[1765549571291,7.88,138.89,138.88,0.69]
[1765549571508,7.88,138.89,138.88,3.01792097]
[1765549571821,7.88,138.89,138.87,11.10881639]
[1765549572014,7.88,138.89,138.87,8.09089542]
[1765549572214,7.88,138.89,138.87,11.10881639]
[1765549573028,15.07998906,138.89,138.87,0.89]
[1765549573192,15.07998906,138.89,138.87,0.2]
[1765549573392,0.72,138.88,138.87,0.2]
[1765549574529,3.74030584,138.88,138.87,0.2]
[1765549574733,0.72,138.88,138.87,0.2]
[1765549575037,10.94076666,138.88,138.87,0.2]
[1765549577324,7.92046082,138.88,138.87,0.2]
[1765549577645,10.94076666,138.88,138.87,0.2]
[1765549577816,7.88,138.88,138.87,0.2]
[1765549578913,8.56,138.88,138.87,0.2]
[1765549579112,15.76046082,138.88,138.87,0.2]
[1765549580346,18.78076666,138.88,138.87,0.2]
[1765549580524,36.9240803,138.88,138.85,0.2]
[1765549580842,13.18925277,138.85,138.78,0.2]
[1765549581014,7.20461095,138.8,138.78,0.2]
[1765549581213,7.88,138.79,138.78,0.2]
[1765549582454,18.00663367,138.84,138.78,11.14595506]
[1765549582742,15.08321663,138.83,138.79,0.72]
[1765549583234,15.80321663,138.83,138.79,0.72]
[1765549583816,18.82352247,138.83,138.79,0.72]
[1765549585210,0.72,138.82,138.79,0.72]
[1765549586235,36.1111577,138.83,138.79,0.72]
[1765549586436,36.8311577,138.83,138.79,0.72]
[1765549588721,33.81085186,138.83,138.79,0.72]
[1765549588944,36.8311577,138.83,138.79,0.72]
[1765549589146,3.74030584,138.82,138.79,0.72]
[1765549591130,7.20409192,138.81,138.79,0.72]
[1765549591356,7.9,138.8,138.78,0.92]
[1765549593759,15.10491944,138.8,138.78,0.92]
[1765549594069,15.82491944,138.8,138.78,0.2]
[1765549594251,0.72,138.79,138.78,0.2]
[1765549595096,3.74030584,138.79,138.78,0.2]
[1765549595245,10.94543589,138.79,138.78,0.2]
[1765549596670,7.20513005,138.79,138.78,0.2]
[1765549596863,7.92513005,138.79,138.78,0.2]
[1765549597586,10.94543589,138.79,138.78,0.2]
[1765549598168,18.84543589,138.79,138.78,0.2]
[1765549599466,15.82513005,138.79,138.78,0.2]
[1765549599675,18.84543589,138.79,138.78,0.2]
[1765549601678,15.82513005,138.79,138.78,0.2]
[1765549601870,18.84543589,138.79,138.78,0.2]
[1765549603376,15.82513005,138.79,138.78,0.2]
[1765549603567,18.84543589,138.79,138.78,0.2]
[1765549603767,15.10513005,138.79,138.78,0.2]
[1765549603972,15.10513005,138.79,138.78,0.92]
[1765549604180,15.10513005,138.79,138.78,0.2]
[1765549604480,7.20513005,138.79,138.78,0.2]
[1765549604679,15.10513005,138.79,138.78,0.2]
[1765549607876,15.82513005,138.79,138.78,0.2]
[1765549610885,18.85079883,138.79,138.78,0.2]
[1765549611979,7.92513005,138.79,138.78,0.2]
[1765549612185,20.55317579,138.79,138.78,0.2]
[1765549614365,15.82513005,138.79,138.78,0.2]
[1765549614689,74.59165118,138.79,138.73,0.86]
[1765549614988,4.72804574,138.77,138.73,0.86]
[1765549615174,8.56,138.76,138.73,0.86]
[1765549615485,12.62804574,138.76,138.73,0.86]
[1765549615682,7.9,138.76,138.74,0.66]
[1765549616572,12.59525294,138.75,138.73,0.2]
[1765549616783,7.9,138.74,138.73,0.2]
[1765549616964,7.9,138.74,138.73,0.86]
[1765549618389,7.9,138.74,138.73,0.2]
[1765549618691,15.10772668,138.74,138.73,0.2]
[1765549620065,20.49577242,138.74,138.73,0.2]
[1765549620973,15.76772668,138.74,138.73,0.2]
[1765549621179,15.10772668,138.74,138.73,0.2]
[1765549622696,20.49577242,138.74,138.73,0.2]
[1765549623191,15.76772668,138.74,138.73,0.2]
[1765549623491,20.49577242,138.74,138.73,0.2]
[1765549623695,15.76772668,138.74,138.73,0.2]
[1765549623897,7.9,138.74,138.73,0.2]
[1765549624081,15.10772668,138.74,138.73,0.2]
[1765549624283,49.07274146,138.79,138.73,0.2]
[1765549624284,0.66,138.77,138.73,0.86]
[1765549624479,9.45609148,138.74,138.73,0.2]
[1765549624697,7.20876585,138.72,138.66,0.1]
[1765549624922,4.72804574,138.69,138.66,0.1]
[1765549625125,7.9,138.68,138.66,0.76]
[1765549625395,0.66,138.71,138.66,0.76]
[1765549625396,7.9,138.67,138.66,0.76]
[1765549625786,7.9,138.67,138.66,14.29799066]
[1765549625976,7.9,138.68,138.67,8.80994492]
[1765549626173,22.74517881,138.76,138.7,13.0470912]
[1765549626374,7.9,138.75,138.7,17.77513694]
[1765549626595,7.9,138.75,138.71,5.38804574]
[1765549626801,15.10760113,138.75,138.71,0.66]
[1765549627007,15.10760113,138.75,138.72,0.66]
[1765549627979,20.49564687,138.75,138.71,0.66]
[1765549628178,20.49564687,138.75,138.7,0.66]
[1765549628179,5.38804574,138.74,138.7,0.66]
[1765549628780,12.59628312,138.74,138.7,0.66]
[1765549629393,7.86823738,138.74,138.7,0.66]
[1765549629594,7.20823738,138.74,138.7,0.66]
[1765549629781,8.56,138.75,138.7,7.86957277]
[1765549629983,8.56,138.75,138.7,12.59761851]
[1765549630295,8.56,138.75,138.71,5.38804574]
[1765549630296,15.76734664,138.75,138.71,5.38804574]
[1765549630474,7.9,138.75,138.71,5.38804574]
[1765549630680,15.10729175,138.75,138.72,5.38804574]
[1765549631075,7.9,138.74,138.73,0.66]
[1765549631293,7.20564922,138.78,138.73,5.38804574]
[1765549631504,18.01054543,138.81,138.73,9.46994492]
[1765549631692,7.9,138.8,138.75,4.72804574]
[1765549632000,13.28804574,138.8,138.75,4.72804574]
[1765549632185,0.66,138.79,138.73,8.80994492]
[1765549632387,5.38804574,138.79,138.75,0.66]
[1765549632906,7.9,138.8,138.72,13.7070912]
[1765549632907,4.72804574,138.77,138.72,13.7070912]
[1765549633107,7.9,138.76,138.72,13.7070912]
[1765549633279,7.9,138.76,138.73,0.66]
[1765549633810,8.56,138.76,138.73,0.66]
[1765549634500,8.56,138.76,138.7,13.7070912]
[1765549634501,4.72804574,138.74,138.7,13.7070912]
[1765549634708,7.9,138.73,138.71,0.66]
[1765549635211,7.9,138.73,138.71,12.59718656]
[1765549635599,7.9,138.73,138.72,0.66]
[1765549635788,7.20690855,138.76,138.72,5.38804574]
[1765549636114,7.20597697,138.78,138.73,21.85703612]
[1765549636279,7.9,138.77,138.73,18.43513694]
[1765549636482,7.9,138.77,138.74,0.66]
[1765549636712,15.10638161,138.77,138.74,0.66]
[1765549636918,15.10638161,138.77,138.72,11.93671671]
[1765549636919,19.83442735,138.77,138.72,11.93671671]
[1765549637082,0.66,138.76,138.72,4.72804574]
[1765549637281,37.84984855,138.77,138.72,4.72804574]
[1765549637282,37.84984855,138.77,138.73,0.68]
[1765549637512,37.84984855,138.77,138.71,21.85703612]
[1765549637812,5.43804574,138.76,138.72,0.68]
[1765549638225,0.71,138.75,138.72,0.68]
[1765549638387,7.9,138.74,138.72,0.68]
[1765549638586,7.9,138.74,138.72,5.40804574]
[1765549638804,7.9,138.74,138.73,7.20824623]
[1765549639081,7.20585331,138.78,138.73,7.88824623]
[1765549639298,7.9,138.77,138.74,0.68]
[1765549639699,7.9,138.77,138.74,5.40804574]
[1765549640017,7.9,138.77,138.75,4.72804574]
[1765549640226,7.9,138.77,138.76,4.72804574]
[1765549640516,7.9,138.77,138.76,5.40804574]
[1765549641092,7.9,138.79,138.76,5.40804574]
[1765549641293,7.9,138.79,138.77,5.40804574]
[1765549641508,7.9,138.79,138.77,0.68]
[1765549641809,7.9,138.79,138.77,5.40804574]
[1765549642311,7.9,138.79,138.76,12.65254373]
[1765549642508,7.9,138.79,138.76,7.92628737]
[1765549642706,7.9,138.79,138.77,0.72]
[1765549642881,15.10514963,138.79,138.76,11.93254373]
[1765549643087,8.61,138.79,138.76,7.92628737]
[1765549643297,7.20484949,138.8,138.76,7.92628737]
[1765549643494,12.64110585,138.8,138.76,7.92628737]
[1765549644112,7.91484949,138.8,138.77,0.72]
[1765549644993,0.71,138.79,138.75,14.25620128]
[1765549645212,0.71,138.79,138.76,0.72]
[1765549645727,7.20484949,138.8,138.76,0.72]
[1765549645887,7.20484949,138.8,138.76,5.44625636]
[1765549646088,5.43625636,138.82,138.78,4.72625636]
[1765549646089,0.71,138.82,138.78,4.72625636]
[1765549646289,7.9,138.81,138.78,4.72625636]
[1765549646488,7.9,138.81,138.79,0.72]
[1765549647314,15.10416211,138.81,138.79,0.72]
[1765549647646,7.9,138.81,138.79,0.72]
[1765549648590,13.0470912,138.85,138.79,0.72]
[1765549648591,7.20097933,138.87,138.8,13.53620128]
[1765549648929,0.2,138.91,138.8,13.0470912]
[1765549648930,4.72625636,138.84,138.8,13.0470912]
[1765549649295,7.20305409,138.83,138.8,20.25166005]
[1765549649522,7.20305409,138.83,138.81,0.72]
[1765549649909,7.20274796,138.84,138.81,0.72]
[1765549650805,13.33625636,138.85,138.81,5.44625636]
[1765549650806,7.9,138.85,138.81,5.44625636]
[1765549651211,5.43625636,138.87,138.81,5.44625636]
[1765549651212,15.81119569,138.87,138.82,5.44625636]
[1765549651392,15.81119569,138.87,138.83,7.92305409]
[1765549651596,15.10119569,138.87,138.83,7.92305409]
[1765549651797,15.10119569,138.87,138.84,0.72]
[1765549653403,15.81119569,138.87,138.84,0.72]
[1765549654217,15.10119569,138.87,138.84,0.72]
[1765549654396,15.10119569,138.87,138.84,7.92249782]
[1765549654397,7.9,138.87,138.84,7.92249782]
[1765549654603,7.9,138.87,138.84,12.64875418]
[1765549654804,7.20012398,138.89,138.85,0.72]
[1765549655020,15.10012398,138.89,138.85,5.44625636]
[1765549655526,15.10012398,138.89,138.86,0.72]
[1765549655713,0.71,138.88,138.84,12.64875418]
[1765549656101,7.91062026,138.88,138.85,0.72]
[1765549656302,12.63687662,138.88,138.83,28.86997026]
[1765549656501,0.71,138.87,138.83,20.96997026]
[1765549656709,7.9,138.86,138.83,20.96997026]
[1765549657823,7.9,138.86,138.83,25.69622662]
[1765549658024,7.9,138.86,138.84,0.72]
[1765549658529,7.9,138.86,138.84,5.44625636]
[1765549658830,15.10051958,138.88,138.85,5.44625636]
[1765549659028,7.9,138.88,138.85,5.44625636]
[1765549659334,7.2001585,138.89,138.86,0.72]
[1765549659541,7.9,138.88,138.86,0.72]
[1765549660314,5.43625636,138.87,138.81,0.72]
[1765549660514,4.72625636,138.86,138.82,7.92353145]
[1765549660720,5.43625636,138.87,138.82,12.64978781]
[1765549660941,0.71,138.86,138.83,0.72]
[1765549661426,7.9,138.88,138.83,12.64929672]
[1765549661745,7.9,138.88,138.85,4.72625636]
[1765549661922,7.9,138.88,138.86,5.44625636]
[1765549662126,7.9,138.88,138.86,0.72]
[1765549663844,8.61,138.88,138.85,7.20187704]
[1765549664244,8.61,138.88,138.85,7.92187704]
[1765549664417,7.9,138.88,138.85,7.92187704]
[1765549664944,15.10062142,138.88,138.85,7.92187704]
[1765549665136,15.81062142,138.88,138.84,20.73854992]
[1765549665446,15.81062142,138.88,138.85,0.72]
[1765549666143,15.81062142,138.88,138.85,7.9220013]
[1765549667044,15.81062142,138.88,138.84,16.01223758]
[1765549667226,8.61,138.88,138.85,0.72]
[1765549667642,7.9,138.88,138.85,0.72]
[1765549667843,7.9,138.88,138.85,5.44625636]
[1765549668037,7.9,138.88,138.86,0.72]
[1765549668238,7.9,138.88,138.85,4.72625636]
[1765549668538,7.9,138.88,138.85,5.44625636]
[1765549669046,15.1005356,138.88,138.84,38.74483217]
[1765549669250,15.1005356,138.88,138.85,7.92189211]
[1765549669251,15.8105356,138.88,138.85,7.92189211]
[1765549669545,8.61,138.88,138.85,7.92189211]
[1765549669849,4.72625636,138.86,138.81,5.44625636]
[1765549670035,5.43625636,138.86,138.82,7.9232425]
[1765549671343,7.91174406,138.86,138.82,7.92341353]
[1765549671726,0.69,138.85,138.81,7.20370302]
[1765549672050,0.69,138.85,138.81,7.90370302]
[1765549672627,8.57,138.85,138.81,7.90370302]
[1765549673023,0.69,138.84,138.81,0.7]
[1765549673242,7.89277031,138.84,138.8,12.63066668]
[1765549673543,7.89277031,138.84,138.8,11.93066668]
[1765549673846,7.89277031,138.84,138.81,0.7]
[1765549674825,10.91621015,138.84,138.81,0.7]
[1765549675030,7.89277031,138.84,138.81,0.7]
[1765549676041,7.89277031,138.84,138.74,6.01245279]
[1765549676042,3.02343984,138.82,138.74,6.01245279]
[1765549676245,3.02343984,138.81,138.77,20.95323171]
[1765549676421,3.02343984,138.8,138.72,6.01245279]
[1765549676628,10.90343984,138.79,138.74,3.72343984]
[1765549676839,8.57,138.79,138.74,16.77053104]
[1765549677047,7.20564922,138.78,138.75,0.7]
[1765549678151,3.02586926,138.76,138.71,21.7484482]
[1765549678356,3.02586926,138.76,138.71,21.0484482]
[1765549678568,0.69,138.76,138.72,7.90842499]
[1765549679055,0.69,138.76,138.73,0.7]
[1765549679257,0.69,138.76,138.73,7.90803352]
[1765549679452,7.20583165,138.78,138.74,0.7]
[1765549679747,0.99999999,138.85,138.74,0.7]
[1765549679748,10.91967066,138.82,138.77,3.02586926]
[1765549679952,15.7938014,138.82,138.78,0.7]
[1765549680156,15.7938014,138.82,138.78,3.72586926]
[1765549680454,8.59,138.84,138.8,3.02586926]
[1765549680836,8.59,138.84,138.81,0.7]
[1765549681232,15.79266657,138.84,138.8,7.20419805]
[1765549681557,0.69,138.83,138.8,10.93006731]
[1765549681753,15.79266657,138.84,138.8,7.90419805]
[1765549682062,15.79266657,138.84,138.81,7.20407772]
[1765549682353,0.69,138.83,138.78,20.95253255]
[1765549682536,3.02586926,138.82,138.78,20.95253255]
[1765549682742,3.71586926,138.83,138.79,7.20506307]
[1765549682944,0.69,138.82,138.79,7.20506307]
[1765549683362,3.71586926,138.82,138.77,7.90569827]
[1765549683658,10.91990179,138.82,138.77,7.90569827]
[1765549683854,8.59,138.81,138.77,7.90569827]
[1765549684046,11.61586926,138.81,138.77,7.90569827]
[1765549684252,11.61586926,138.81,138.77,7.90585616]
[1765549685055,0.69,138.8,138.77,7.20585616]
[1765549685354,0.69,138.8,138.75,7.20698398]
[1765549685355,10.23099931,138.79,138.75,7.20698398]
[1765549685650,7.9,138.78,138.75,0.7]
[1765549685858,8.59,138.78,138.75,0.7]
[1765549686031,7.9,138.78,138.75,7.90712146]
[1765549686233,8.59,138.78,138.75,7.90712146]
[1765549687457,7.9,138.78,138.75,7.90712146]
[1765549687631,7.9,138.78,138.76,3.72586926]
[1765549687830,7.9,138.8,138.77,3.02586926]
[1765549688049,7.9,138.8,138.77,0.7]
[1765549688250,7.9,138.8,138.77,3.72586926]
[1765549688760,7.9,138.8,138.78,0.7]
[1765549688965,7.9,138.82,138.79,7.20513005]
[1765549689259,0.69,138.82,138.79,7.20513005]
[1765549689456,7.9,138.82,138.79,7.20513005]
[1765549689659,7.9,138.82,138.8,0.7]
[1765549690129,7.9,138.82,138.79,10.23099931]
[1765549690331,7.9,138.82,138.79,7.90513005]
[1765549690546,7.9,138.82,138.79,10.93099931]
[1765549690852,7.9,138.82,138.79,7.90513005]
[1765549691057,8.59,138.82,138.79,7.20513005]
[1765549691240,7.9,138.82,138.79,7.90513005]
[1765549691440,7.9,138.82,138.8,3.72586926]
[1765549691643,7.20185535,138.86,138.81,16.07296046]
[1765549691938,3.71586926,138.88,138.84,3.02586926]
[1765549691939,7.9,138.88,138.84,3.02586926]
[1765549692265,7.9,138.88,138.85,3.02586926]
[1765549692644,7.9,138.88,138.85,0.7]
[1765549693154,7.9,138.88,138.85,10.92745282]
[1765549694461,7.9,138.88,138.85,7.90158356]
[1765549694642,7.9,138.88,138.86,0.7]
[1765549694841,7.9,138.88,138.85,10.92745282]
[1765549695157,0.69,138.87,138.82,0.7]
[1765549695356,7.9,138.88,138.85,3.02586926]
[1765549695541,7.9,138.88,138.85,10.22787729]
[1765549695741,8.59,138.88,138.85,10.22787729]
[1765549696058,0.69,138.87,138.84,7.20236503]
[1765549697367,0.69,138.87,138.84,7.90236503]
[1765549697873,0.69,138.87,138.84,10.92823429]
[1765549698067,0.66,138.87,138.84,10.92823429]
[1765549698244,0.66,138.87,138.84,7.20236503]
[1765549698569,0.66,138.87,138.84,10.89823429]
[1765549698760,7.9,138.88,138.85,0.67]
[1765549698964,8.56,138.88,138.85,0.67]
[1765549699165,8.56,138.88,138.85,7.8717206]
[1765549699472,8.56,138.88,138.85,7.2017206]
[1765549700065,8.56,138.88,138.85,7.8717206]
[1765549700364,8.56,138.88,138.85,10.89758986]
[1765549700760,7.9,138.88,138.85,10.22758986]
[1765549700965,7.9,138.88,138.85,10.89758986]
[1765549701762,7.9,138.88,138.85,10.22758986]
[1765549701961,7.9,138.88,138.86,3.02586926]
[1765549702163,7.39927432,138.91,138.88,13.0470912]
[1765549702164,0.2,138.91,138.88,13.0470912]
[1765549702546,0.86,138.91,138.86,0.72]
[1765549702745,0.86,138.91,138.87,3.74586926]
[1765549703153,0.86,138.91,138.88,7.20046082]
[1765549703465,0.86,138.91,138.88,7.92046082]
[1765549703972,0.86,138.91,138.88,10.94633008]
[1765549704656,0.2,138.91,138.88,10.94633008]
[1765549705065,0.66,138.9,138.87,7.2007863]
[1765549705261,0.66,138.9,138.88,7.20041999]
[1765549705663,0.2,138.91,138.88,7.20041999]
[1765549705868,0.86,138.91,138.88,7.20041999]
[1765549707275,0.2,138.91,138.88,10.94628925]
[1765549707575,0.66,138.9,138.86,20.24827018]
[1765549707750,0.66,138.9,138.86,20.96827018]
[1765549708276,0.66,138.9,138.86,20.96838931]
[1765549708573,3.68586926,138.9,138.86,20.24838931]
[1765549709076,0.66,138.89,138.86,7.20129811]
[1765549709673,10.88586071,138.89,138.85,20.24897707]
[1765549709880,10.88586071,138.89,138.85,20.96897707]
[1765549710051,7.85999145,138.89,138.85,20.96897707]
[1765549710252,0.66,138.88,138.85,20.96897707]
[1765549711871,7.19999145,138.89,138.85,20.96897707]
[1765549712175,7.85999145,138.89,138.85,20.96897707]
[1765549712372,0.66,138.88,138.85,20.24897707]
[1765549712765,0.66,138.88,138.85,20.96897707]
[1765549713084,7.85962421,138.9,138.86,0.72]
[1765549713262,0.66,138.89,138.86,0.72]
[1765549714378,0.66,138.89,138.85,20.96897707]
[1765549715654,7.86008077,138.89,138.85,20.96897707]
[1765549716289,7.20008077,138.89,138.85,20.96897707]
[1765549716464,0.66,138.88,138.85,20.96897707]
[1765549718682,7.86008077,138.89,138.85,20.96897707]
[1765549718888,0.66,138.88,138.85,20.96897707]
[1765549719183,0.66,138.88,138.85,25.92692728]
[1765549719393,18.76134841,138.9,138.85,25.92692728]
[1765549719590,0.66,138.89,138.85,25.92692728]
[1765549720578,10.88150441,138.89,138.85,7.92188587]
[1765549721078,0.66,138.88,138.85,7.92188587]
[1765549723092,0.66,138.88,138.85,7.20188587]
[1765549723392,10.88219871,138.88,138.84,7.20233683]
[1765549723782,3.02144868,138.86,138.83,7.20285143]
[1765549724178,3.02144868,138.86,138.81,18.009403]
[1765549724179,0.66,138.85,138.82,7.20330362]
[1765549724696,0.66,138.85,138.82,7.92330362]
[1765549725984,3.02144868,138.84,138.79,18.73212767]
[1765549726294,7.86216619,138.85,138.82,7.20325194]
[1765549726295,0.66,138.85,138.82,7.20325194]
[1765549726674,7.86115395,138.87,138.83,0.72]
[1765549726876,8.54,138.86,138.83,0.72]
[1765549728181,0.66,138.89,138.84,11.8313936]
[1765549728377,7.88,138.88,138.84,11.8313936]
[1765549728582,7.88,138.88,138.85,0.72]
[1765549728787,0.66,138.87,138.84,0.72]
[1765549729492,7.88,138.88,138.84,0.72]
[1765549729694,8.54,138.88,138.85,7.20201656]
[1765549730233,3.02144868,138.86,138.81,13.0470912]
[1765549730379,3.02144868,138.86,138.82,7.20321999]
[1765549730709,0.66,138.85,138.82,7.20321999]
[1765549731677,0.66,138.85,138.83,7.20294722]
[1765549732693,7.20152992,138.86,138.83,7.20294722]
[1765549733009,0.66,138.86,138.83,7.20294722]
[1765549733203,0.66,138.86,138.83,7.91294722]
[1765549734017,18.10211779,138.88,138.83,7.91294722]
[1765549734219,0.66,138.87,138.84,0.71]
[1765549734522,15.74066911,138.88,138.84,0.71]
[1765549734710,15.08066911,138.88,138.84,0.71]
[1765549734913,0.66,138.87,138.84,0.71]
[1765549735323,7.8610469,138.87,138.83,25.92058245]
[1765549737304,20.4629895,138.88,138.84,0.71]
[1765549737616,0.66,138.87,138.84,0.71]
[1765549738314,0.66,138.87,138.84,7.91239538]
[1765549738818,7.86098462,138.87,138.84,7.20239538]
[1765549739291,7.20098462,138.87,138.84,7.20239538]
[1765549739596,0.66,138.86,138.84,7.20239538]
[1765549740122,0.66,138.86,138.83,7.91279601]
[1765549740316,12.58395191,138.86,138.82,7.20343635]
[1765549740695,8.54,138.85,138.82,7.20343635]
[1765549741196,8.54,138.85,138.82,7.91343635]
[1765549741823,15.74214146,138.85,138.82,7.91343635]
[1765549742397,15.74214146,138.85,138.81,13.0470912]
[1765549742398,5.38236849,138.84,138.79,7.91487204]
[1765549742603,5.38236849,138.83,138.79,0.71]
[1765549742803,7.88,138.82,138.79,0.71]
[1765549743022,8.54,138.82,138.79,0.71]
[1765549744224,0.66,138.86,138.8,13.53231341]
[1765549744414,0.66,138.87,138.82,8.80994492]
[1765549744608,7.88,138.86,138.82,8.80994492]
[1765549744807,7.88,138.86,138.83,0.71]
[1765549745010,8.54,138.86,138.83,0.71]
[1765549745524,7.88,138.86,138.84,7.20253529]
[1765549745906,12.58196537,138.9,138.85,9.51994492]
[1765549746106,7.88,138.89,138.85,9.51994492]
[1765549746312,8.54,138.89,138.86,0.71]
[1765549748114,0.66,138.88,138.85,16.01147152]
[1765549748323,0.66,138.88,138.85,16.72147152]
[1765549749103,0.66,138.88,138.83,0.71]
[1765549749322,7.86087105,138.88,138.83,7.91272513]
[1765549749808,0.66,138.87,138.84,0.71]
[1765549750201,7.86108936,138.87,138.84,0.71]
[1765549750428,7.86108936,138.87,138.83,12.63329955]
[1765549750727,0.66,138.87,138.84,7.20247478]
[1765549751023,30.60043042,138.89,138.85,8.80994492]
[1765549751024,15.74027934,138.89,138.85,8.80994492]
[1765549751210,15.74027934,138.89,138.85,14.24051934]
[1765549751415,0.66,138.88,138.85,9.51994492]
[1765549751811,5.38057442,138.88,138.81,6.73528753]
[1765549752028,5.38057442,138.88,138.82,0.71]
[1765549752029,4.72057442,138.87,138.82,0.71]
[1765549752235,15.08200668,138.86,138.82,7.91329818]
[1765549752429,15.74200668,138.86,138.82,7.91329818]
[1765549752616,0.66,138.85,138.82,12.6338726]
[1765549753738,7.86210837,138.85,138.82,5.43057442]
[1765549753918,7.86210837,138.85,138.81,16.72387954]
[1765549754113,7.86210837,138.85,138.82,12.63414624]
[1765549754730,0.66,138.85,138.82,12.63414624]
[1765549754927,7.88,138.86,138.83,0.71]
[1765549755117,7.88,138.86,138.84,4.72057442]
[1765549755317,7.88,138.86,138.83,0.71]
[1765549755535,7.88,138.86,138.84,11.92302049]
[1765549756034,15.08032095,138.89,138.85,14.24051934]
[1765549756236,15.74032095,138.89,138.85,13.53051934]
[1765549756411,15.08032095,138.89,138.85,13.53051934]
[1765549756612,0.66,138.88,138.84,4.72057442]
[1765549756921,0.66,138.88,138.83,34.49042606]